bitfinex-derivatives/quotes_SOLF0:USTF0_20240923
["timestamp","ask_amount","ask_price","bid_price","bid_amount"]
[1727049967167,5.45594248,143.93,143.89,15.1246]
[1727049967369,3.4735,143.94,143.89,15.1246]
[1727049967571,5.4540631,143.93,143.89,15.1246]
[1727049967872,3.4735,143.94,143.89,15.1246]
[1727049968072,5.45432977,143.93,143.89,15.1246]
[1727049968262,3.4735,143.94,143.88,3.4748]
[1727049968770,5.45529279,143.93,143.88,3.4748]
[1727049968970,3.4735,143.94,143.88,3.4748]
[1727049969170,5.45488263,143.93,143.88,3.4748]
[1727049969363,3.4735,143.94,143.89,3.4746]
[1727049969563,5.45258337,143.93,143.89,3.4746]
[1727049969777,3.4735,143.94,143.89,3.4746]
[1727049969967,5.45256052,143.93,143.89,3.4746]
[1727049970272,3.4735,143.94,143.89,3.4746]
[1727049970472,5.45333374,143.93,143.89,3.4746]
[1727049970674,3.4735,143.94,143.89,3.4746]
[1727049970861,5.45333799,143.93,143.87,18.69]
[1727049971062,1.4166,143.98,143.88,1.4182]
[1727049971266,5.45512927,143.97,143.88,1.4182]
[1727049971467,5.45512927,143.96,143.88,1.4182]
[1727049971673,5.45512927,143.95,143.88,1.4182]
[1727049971871,1.4166,143.98,143.88,1.4182]
[1727049972267,5.45324764,143.97,143.88,1.4182]
[1727049972472,3.4736,143.94,143.88,4.8929]
[1727049972779,5.45258426,143.93,143.88,4.8929]
[1727049972973,5.45258426,143.93,143.79,408.83598833]
[1727049973180,2.9036,143.92,143.83,18.69]
[1727049973563,5.45424701,143.91,143.83,18.69]
[1727049973866,5.45424701,143.9,143.83,18.69]
[1727049974076,5.45424701,143.91,143.83,18.69]
[1727049974267,3.4748,143.89,143.8,2.7556]
[1727049974468,3.4748,143.89,143.83,18.69]
[1727049974671,7.0290357,143.9,143.85,3.4756]
[1727049974970,5.45552496,143.89,143.85,18.69]
[1727049975179,3.5222091,143.91,143.85,18.69]
[1727049975371,5.45457857,143.9,143.87,3.475]
[1727049975572,7.01532698,143.92,143.87,3.475]
[1727049975773,5.45420711,143.91,143.87,3.475]
[1727049975965,5.45420711,143.9,143.87,3.475]
[1727049976165,1.4655,143.95,143.88,18.69]
[1727049976365,5.45497307,143.94,143.88,18.69]
[1727049976565,5.45497307,143.93,143.8,1.3489]
[1727049976772,5.45497307,143.92,143.84,18.69]
[1727049976965,5.45497307,143.91,143.84,18.69]
[1727049977168,5.45497307,143.9,143.84,18.69]
[1727049977368,1.4655,143.95,143.84,18.69]
[1727049977569,5.45426616,143.94,143.84,18.69]
[1727049977769,5.45426616,143.93,143.84,18.69]
[1727049977979,8.92846616,143.92,143.84,18.69]
[1727049978278,5.45426616,143.91,143.84,18.69]
[1727049978576,8.93489991,143.9,143.86,3.4752]
[1727049978782,5.45426616,143.89,143.86,3.4752]
[1727049979075,3.4742,143.91,143.86,3.4752]
[1727049979277,9.00294167,143.9,143.86,3.4752]
[1727049979472,5.45412425,143.89,143.86,3.4752]
[1727049979679,5.45470524,143.88,143.86,3.4752]
[1727049979863,3.54881742,143.9,143.86,3.4752]
[1727049980064,6.9,143.87,143.86,3.4752]
[1727049983771,1.4655,143.95,143.91,3.4742]
[1727049984078,5.45856261,143.94,143.89,18.69]
[1727049984277,5.45856261,143.93,143.87,1.4277]
[1727049984478,5.45856261,143.92,143.87,1.4277]
[1727049984671,1.4655,143.95,143.87,1.4277]
[1727049984672,5.45856261,143.94,143.87,1.4277]
[1727049985671,5.45856261,143.94,143.91,18.69]
[1727049985884,5.45856261,143.93,143.91,18.69]
[1727049986177,3.473,143.96,143.93,3.4736]
[1727049986373,5.46501117,143.95,143.93,3.4736]
[1727049986678,5.46501117,143.95,143.92,3.4738]
[1727049986679,5.46501117,143.94,143.92,3.4738]
[1727049986869,5.46501117,143.93,143.92,3.4738]
[1727049987271,3.473,143.96,143.93,3.4737]
[1727049987676,5.46615099,143.95,143.93,3.4737]
[1727049987886,5.46615099,143.94,143.93,3.4737]
[1727049989475,3.473,143.96,143.93,3.4737]
[1727049989778,5.46995732,143.95,143.93,3.4737]
[1727049989991,2.7581,143.99,143.91,18.69]
[1727049989992,3.4726,143.98,143.94,3.4734]
[1727049990174,5.47039294,143.97,143.94,3.4734]
[1727049990378,5.47039294,143.96,143.94,3.4734]
[1727049990890,5.47039294,143.95,143.94,3.4734]
[1727049991484,8.94289294,143.98,143.94,3.4734]
[1727049991788,5.47039294,143.97,143.94,3.4734]
[1727049992083,3.4725,143.98,143.94,3.4734]
[1727049992084,5.47039294,143.96,143.94,3.4734]
[1727049992279,5.47039294,143.95,143.94,3.4734]
[1727049992980,5.47039294,143.97,143.94,3.4734]
[1727049993495,10.44628084,144.11,143.96,11.68]
[1727049993679,2.8294,144.05,143.96,11.68]
[1727049994182,11.68,144.02,143.93,1.3402]
[1727049994381,11.68,144.0,143.9,11.68]
[1727049994583,3.473,143.96,143.92,3.4738]
[1727049994783,5.47387098,143.95,143.92,3.4738]
[1727049994979,5.47387098,143.94,143.92,3.4738]
[1727049995288,5.47387098,143.93,143.92,3.4738]
[1727049995588,5.47387098,143.93,143.89,13.0202]
[1727049995884,5.47387098,143.92,143.89,13.0202]
[1727049996096,5.47387098,143.91,143.89,16.4947]
[1727049996282,11.68,143.98,143.89,13.0202]
[1727049996488,3.4736,143.94,143.9,3.4744]
[1727049996688,5.47131701,143.93,143.9,3.4744]
[1727049996992,5.47131701,143.92,143.85,11.68]
[1727049997179,1.3297,143.98,143.85,11.68]
[1727049997180,5.47131701,143.91,143.85,11.68]
[1727049997386,5.47131701,143.9,143.85,11.68]
[1727049997688,5.47131701,143.89,143.85,11.68]
[1727049997889,5.47131701,143.88,143.85,11.68]
[1727049998079,3.4748,143.89,143.85,11.68]
[1727049998280,5.46551736,143.88,143.85,11.68]
[1727049998496,3.4748,143.89,143.85,11.68]
[1727049998692,5.46547212,143.88,143.85,11.68]
[1727049998893,3.4748,143.89,143.85,11.68]
[1727049999096,5.46474805,143.88,143.85,11.68]
[1727049999389,3.4748,143.89,143.85,11.68]
[1727049999590,3.4744,143.91,143.87,3.4751]
[1727049999785,13.1408,143.93,143.84,1.4005]
[1727049999984,1.4198,143.92,143.84,1.4005]
[1727050000182,3.4751,143.87,143.84,4.8763]
[1727050000899,5.46244952,143.86,143.84,4.8763]
[1727050001085,3.4751,143.87,143.84,4.8763]
[1727050001286,5.46159485,143.86,143.84,3.4758]
[1727050001598,3.4751,143.87,143.8,2.7666]
[1727050001599,5.46033596,143.85,143.81,11.68]
[1727050001788,5.46033596,143.84,143.81,11.68]
[1727050001986,11.68,143.91,143.81,11.68]
[1727050002293,5.46052807,143.9,143.81,11.68]
[1727050002495,5.46052807,143.89,143.82,3.4762]
[1727050002695,3.4753,143.87,143.81,11.68]
[1727050002999,5.45881488,143.86,143.81,11.68]
[1727050003508,3.4753,143.87,143.81,11.68]
[1727050003791,5.45840605,143.85,143.82,3.4762]
[1727050004095,5.45840605,143.85,143.81,11.68]
[1727050004393,3.4751,143.88,143.83,3.4759]
[1727050004691,5.45738636,143.87,143.81,11.68]
[1727050004893,5.45738636,143.86,143.81,11.68]
[1727050005189,5.45738636,143.85,143.81,11.68]
[1727050005394,3.4751,143.88,143.81,11.68]
[1727050005595,5.45752476,143.87,143.83,11.68]
[1727050005793,5.45752476,143.86,143.84,3.4759]
[1727050006101,5.45805555,143.85,143.84,3.4759]
[1727050007697,5.45805555,143.85,143.81,11.68]
[1727050007898,11.68,143.91,143.81,11.68]
[1727050008096,3.4751,143.88,143.81,11.68]
[1727050008395,5.45951519,143.87,143.81,11.68]
[1727050008598,5.45951519,143.86,143.84,11.68]
[1727050008896,1.4198,143.92,143.8,1.3832]
[1727050009095,17.1412935,143.91,143.82,11.68]
[1727050009292,5.4612935,143.9,143.8,13.0632]
[1727050009599,3.4754,143.86,143.82,3.4763]
[1727050009990,5.4612935,143.85,143.8,13.0632]
[1727050010194,5.4612935,143.84,143.75,100.47147114]
[1727050010394,5.4612935,143.83,143.77,11.68]
[1727050010599,5.46136191,143.82,143.77,11.68]
[1727050010897,3.4762,143.83,143.79,3.4769]
[1727050011092,5.46042369,143.82,143.79,3.4769]
[1727050011295,3.4762,143.83,143.79,3.4769]
[1727050011496,5.46099421,143.82,143.79,3.4769]
[1727050011696,3.4762,143.83,143.79,3.4769]
[1727050012002,5.46269335,143.82,143.79,3.4769]
[1727050012201,3.4762,143.83,143.79,3.4769]
[1727050013393,5.46487334,143.82,143.79,3.4769]
[1727050013593,3.4763,143.82,143.78,3.4772]
[1727050013791,3.4763,143.82,143.76,20.0328]
[1727050014098,5.46357793,143.81,143.76,20.0328]
[1727050014300,3.4763,143.82,143.76,20.0328]
[1727050014604,5.46408493,143.81,143.76,20.0328]
[1727050014794,3.4763,143.82,143.79,3.4769]
[1727050015099,5.46447079,143.81,143.76,1.3328]
[1727050015299,5.46447079,143.8,143.72,18.7]
[1727050015500,1.436,143.85,143.77,18.7]
[1727050015800,5.46501266,143.84,143.77,3.4774]
[1727050016097,5.46501266,143.83,143.77,3.4774]
[1727050016293,3.44754723,143.84,143.75,18.7]
[1727050016599,5.46717932,143.83,143.76,3.4778]
[1727050016795,3.4768,143.81,143.76,3.4778]
[1727050016992,5.46589658,143.8,143.76,3.4778]
[1727050017198,5.46589658,143.8,143.75,3.478]
[1727050017398,5.46589658,143.79,143.72,1.4527]
[1727050017596,5.46589658,143.81,143.72,20.1527]
[1727050017797,5.46589658,143.78,143.75,3.4779]
[1727050018001,3.4773,143.79,143.72,1.4527]
[1727050018305,5.46863937,143.78,143.73,3.4784]
[1727050018493,1.436,143.85,143.73,18.7]
[1727050018494,5.46863937,143.77,143.73,18.7]
[1727050018689,1.436,143.85,143.73,18.7]
[1727050018690,3.49025636,143.8,143.73,18.7]
[1727050019006,5.46652957,143.79,143.73,18.7]
[1727050019194,5.46652957,143.78,143.73,18.7]
[1727050019501,3.477,143.8,143.75,3.4779]
[1727050019702,5.46732522,143.79,143.75,3.4779]
[1727050020004,5.46732522,143.78,143.75,3.4779]
[1727050020204,23.61303569,143.85,143.75,3.4779]
[1727050020404,18.7,143.83,143.73,18.7]
[1727050020703,5.46711439,143.82,143.7,18.7]
[1727050021200,5.46711439,143.81,143.7,18.7]
[1727050021400,24.16711439,143.8,143.68,20.152]
[1727050021606,8.28151439,143.79,143.68,20.152]
[1727050021902,2.8144,143.79,143.68,20.152]
[1727050022105,5.46564387,143.78,143.68,20.152]
[1727050022303,3.4775,143.78,143.72,3.4785]
[1727050022497,5.46848268,143.77,143.72,3.4785]
[1727050022805,5.46848268,143.76,143.74,3.4781]
[1727050023002,5.46848268,143.76,143.7,18.7]
[1727050023506,5.46848268,143.75,143.7,18.7]
[1727050023699,1.4352,143.79,143.7,18.7]
[1727050023896,5.46575654,143.78,143.7,18.7]
[1727050024100,5.46575654,143.77,143.7,18.7]
[1727050024607,5.46575654,143.77,143.74,3.4782]
[1727050024907,5.46575654,143.76,143.75,3.478]
[1727050025105,5.46575654,143.78,143.75,18.7]
[1727050025406,63.57069044,144.16,143.7,1.3337]
[1727050025407,1.3416,143.84,143.8,3.4767]
[1727050026208,1.3416,143.84,143.77,18.7]
[1727050026603,1.3416,143.84,143.79,3.4769]
[1727050026797,1.3416,143.84,143.77,18.7]
[1727050027308,1.3416,143.84,143.8,3.4768]
[1727050028111,1.3416,143.84,143.76,1.4246]
[1727050028413,1.3416,143.84,143.77,18.7]
[1727050029601,1.4251,143.87,143.8,18.7]
[1727050029910,1.4251,143.87,143.85,3.4754]
[1727050030506,1.4251,143.87,143.84,3.4758]
[1727050031114,4.8827,143.89,143.85,3.4756]
[1727050032208,4.8827,143.89,143.82,18.7]
[1727050032209,1.408,143.89,143.82,18.7]
[1727050032914,4.8827,143.89,143.85,3.4755]
[1727050033116,1.408,143.89,143.82,18.7]
[1727050033517,1.408,143.89,143.84,3.4757]
[1727050033518,4.8828,143.89,143.84,3.4757]
[1727050033914,1.408,143.89,143.83,1.4004]
[1727050034413,1.408,143.89,143.85,3.4755]
[1727050035918,1.408,143.89,143.83,1.4004]
[1727050036112,13.088,143.89,143.8,11.68]
[1727050037325,13.088,143.89,143.83,3.4759]
[1727050037525,13.088,143.89,143.81,11.68]
[1727050038118,1.408,143.89,143.81,11.68]
[1727050038320,1.408,143.89,143.83,11.68]
[1727050038712,4.8827,143.89,143.85,3.4755]
[1727050039726,13.088,143.89,143.81,11.68]
[1727050039926,13.088,143.89,143.79,11.68]
[1727050040126,3.4753,143.87,143.82,3.4761]
[1727050040323,1.408,143.89,143.82,3.4761]
[1727050040527,1.408,143.89,143.78,20.0947]
[1727050040724,1.408,143.89,143.81,3.4764]
[1727050041730,1.408,143.89,143.78,1.4047]
[1727050041731,3.4767,143.81,143.78,1.4047]
[1727050041931,6.90787941,143.81,143.77,3.4774]
[1727050042121,3.43117941,143.81,143.73,18.69]
[1727050042314,3.4762,143.83,143.75,18.69]
[1727050042518,1.3266,143.84,143.75,18.69]
[1727050042928,3.4756,143.86,143.81,3.4765]
[1727050043118,3.43743879,143.85,143.78,1.4295]
[1727050043516,20.098,143.89,143.78,1.4295]
[1727050044627,20.098,143.89,143.8,3.4768]
[1727050044826,1.07026022,143.88,143.8,3.4768]
[1727050045025,20.098,143.89,143.8,3.4768]
[1727050045428,3.4758,143.85,143.8,3.4768]
[1727050045624,7.02073557,143.85,143.8,3.4768]
[1727050045832,3.54493557,143.85,143.8,3.4768]
[1727050046018,20.098,143.89,143.8,3.4768]
[1727050046225,1.07001845,143.88,143.8,3.4768]
[1727050046530,1.07001845,143.88,143.78,1.4295]
[1727050046531,3.4764,143.82,143.78,1.4295]
[1727050046729,3.42946083,143.81,143.74,18.69]
[1727050046930,3.42946083,143.81,143.78,3.4772]
[1727050047140,3.42946083,143.81,143.73,1.3266]
[1727050047424,18.69,143.82,143.73,1.3266]
[1727050047633,2.8739,143.81,143.73,1.3266]
[1727050048019,2.8739,143.81,143.72,3.4786]
[1727050048225,18.69,143.77,143.68,1.4253]
[1727050048832,3.4784,143.74,143.69,3.4795]
[1727050049030,20.0569,143.8,143.68,1.4253]
[1727050050531,1.3669,143.8,143.69,18.69]
[1727050050930,18.69,143.79,143.68,6.302]
[1727050051138,18.69,143.79,143.68,2.8225]
[1727050051431,3.4796,143.69,143.63,3.4807]
[1727050052133,3.44194204,143.7,143.63,18.69]
[1727050052335,2.7559,143.72,143.63,18.69]
[1727050052532,2.7559,143.72,143.67,3.4799]
[1727050053536,2.7559,143.72,143.68,3.4797]
[1727050054430,1.3754,143.72,143.65,18.69]
[1727050054636,1.4376,143.77,143.65,18.69]
[1727050054827,2.8725,143.77,143.65,18.69]
[1727050055029,3.4786,143.73,143.67,3.4797]
[1727050056836,3.4786,143.73,143.68,3.4795]
[1727050057145,3.4784,143.74,143.65,18.69]
[1727050057737,6.36668435,143.77,143.65,18.69]
[1727050057933,6.36668435,143.77,143.7,3.4792]
[1727050057934,3.4782,143.75,143.7,3.4792]
[1727050058130,6.36668435,143.77,143.67,18.69]
[1727050058543,3.478,143.76,143.7,3.4792]
[1727050059034,6.36668435,143.77,143.7,3.4792]
[1727050059343,6.36668435,143.77,143.69,3.4793]
[1727050060042,6.36668435,143.77,143.68,1.3866]
[1727050061041,3.4786,143.73,143.68,1.3866]
[1727050061450,6.36668435,143.77,143.68,1.3866]
[1727050063139,3.4784,143.74,143.69,3.4794]
[1727050063340,6.36668435,143.77,143.68,20.0766]
[1727050064135,3.478,143.76,143.71,3.4789]
[1727050064937,3.478,143.76,143.72,3.4787]
[1727050065242,1.3669,143.8,143.7,18.69]
[1727050065549,2.8339,143.82,143.7,18.69]
[1727050066051,2.8339,143.82,143.74,3.4782]
[1727050067742,18.69,143.79,143.69,1.424]
[1727050067947,18.69,143.79,143.68,1.3866]
[1727050068742,3.4784,143.74,143.69,3.4793]
[1727050068947,3.40896436,143.74,143.68,1.3866]
[1727050069147,18.69,143.79,143.68,1.3866]
[1727050069148,1.332,143.78,143.68,1.3866]
[1727050069341,1.332,143.78,143.68,4.8662]
[1727050069541,18.69,143.77,143.68,4.8662]
[1727050069847,3.4784,143.74,143.68,4.8662]
[1727050070249,2.8296,143.76,143.68,1.3866]
[1727050071250,3.4787,143.73,143.68,1.3866]
[1727050072346,3.4787,143.73,143.68,4.8663]
[1727050073552,3.4789,143.72,143.68,1.3866]
[1727050074153,18.69,143.74,143.61,20.1538]
[1727050074339,2.8296,143.76,143.62,1.3841]
[1727050074340,18.69,143.72,143.62,1.3841]
[1727050074545,18.69,143.72,143.63,3.4809]
[1727050074752,3.4797,143.69,143.63,3.4809]
[1727050075256,3.4798,143.68,143.63,3.4809]
[1727050075443,3.4798,143.68,143.61,20.1538]
[1727050075444,18.69,143.72,143.62,3.4811]
[1727050075752,18.69,143.72,143.61,18.69]
[1727050075957,18.69,143.74,143.61,18.69]
[1727050076345,3.4798,143.68,143.61,18.69]
[1727050076547,3.4798,143.68,143.59,2.7689]
[1727050076750,3.48280166,143.69,143.59,21.4589]
[1727050077055,3.48,143.67,143.59,21.4589]
[1727050077241,18.69,143.72,143.59,2.7689]
[1727050077555,3.4804,143.66,143.59,2.7689]
[1727050077739,1.4612,143.71,143.6,3.4816]
[1727050078150,2.7121,143.7,143.59,1.3841]
[1727050078558,18.69,143.68,143.59,1.3841]
[1727050078855,22.13664251,143.68,143.59,4.866]
[1727050079050,22.13664251,143.68,143.59,1.3841]
[1727050079250,22.13664251,143.68,143.55,18.69]
[1727050079456,22.13664251,143.68,143.52,2.7518]
[1727050079457,18.69,143.66,143.53,20.1189]
[1727050079759,18.69,143.66,143.53,1.4289]
[1727050079942,2.7121,143.7,143.53,20.1189]
[1727050080143,20.0427,143.65,143.53,20.1189]
[1727050080347,1.4245,143.64,143.58,18.69]
[1727050080644,1.3527,143.69,143.58,18.69]
[1727050080843,2.7772,143.69,143.59,1.4289]
[1727050081042,6.27974149,143.69,143.59,1.4289]
[1727050081259,18.69,143.68,143.55,18.69]
[1727050081449,1.07025553,143.67,143.53,20.1189]
[1727050081654,2.43965553,143.67,143.53,20.1189]
[1727050081854,18.69,143.65,143.57,3.4824]
[1727050082157,1.3699,143.64,143.57,3.4824]
[1727050082556,1.4245,143.63,143.57,3.4824]
[1727050082951,18.69,143.61,143.43,225.0]
[1727050083155,18.69,143.61,143.49,1.4618]
[1727050083558,1.3694,143.6,143.51,3.4838]
[1727050083759,1.3694,143.6,143.49,1.4618]
[1727050084456,4.89267791,143.6,143.52,3.4834]
[1727050084645,4.89267791,143.6,143.49,20.1518]
[1727050085851,3.52327791,143.6,143.49,20.1518]
[1727050086055,18.69,143.62,143.49,20.1518]
[1727050086363,18.69,143.62,143.54,3.483]
[1727050086572,1.4245,143.63,143.51,18.69]
[1727050087059,18.69,143.61,143.49,1.4618]
[1727050087459,18.69,143.61,143.5,18.69]
[1727050087660,20.1145,143.63,143.52,18.69]
[1727050087863,1.4245,143.63,143.52,18.69]
[1727050088065,1.4245,143.63,143.56,3.4825]
[1727050088259,20.1145,143.63,143.51,18.69]
[1727050088465,1.4245,143.63,143.5,18.69]
[1727050088770,20.1145,143.63,143.5,18.69]
[1727050089564,20.1145,143.63,143.44,243.69]
[1727050089565,18.69,143.6,143.44,225.0]
[1727050089862,22.17236708,143.6,143.46,21.4515]
[1727050090263,22.17236708,143.6,143.51,3.4837]
[1727050090567,11.72,143.58,143.51,3.4837]
[1727050090771,1.4605,143.57,143.51,3.4837]
[1727050091255,1.4605,143.57,143.48,11.72]
[1727050091256,2.8876,143.57,143.48,11.72]
[1727050091573,1.4605,143.57,143.52,11.72]
[1727050091760,3.48236708,143.6,143.52,11.72]
[1727050091955,11.72,143.62,143.52,11.72]
[1727050092461,18.74,143.61,143.49,18.74]
[1727050092662,20.0911,143.61,143.49,18.74]
[1727050092868,20.0911,143.61,143.46,2.7615]
[1727050093169,20.0911,143.61,143.49,18.74]
[1727050093967,18.74,143.59,143.46,21.5015]
[1727050094166,22.24815207,143.59,143.46,21.5015]
[1727050096263,3.50815207,143.59,143.43,18.74]
[1727050096468,18.74,143.56,143.43,20.0865]
[1727050096673,2.9095,143.55,143.5,3.4841]
[1727050096965,2.9095,143.55,143.46,18.74]
[1727050097466,20.0911,143.61,143.48,18.74]
[1727050097667,2.9095,143.6,143.5,18.74]
[1727050097972,6.37693829,143.6,143.54,3.4829]
[1727050098170,2.9095,143.6,143.51,1.3661]
[1727050098857,6.39471824,143.6,143.51,4.8498]
[1727050099056,2.9095,143.6,143.51,1.3661]
[1727050099574,6.40831467,143.6,143.51,4.8498]
[1727050099873,2.9095,143.6,143.51,4.8498]
[1727050100266,6.4028074,143.6,143.51,4.8498]
[1727050100772,18.74,143.56,143.43,20.1227]
[1727050101158,18.74,143.56,143.48,3.4844]
[1727050101673,18.74,143.56,143.43,20.1227]
[1727050101975,18.74,143.56,143.49,3.4843]
[1727050102878,6.4028074,143.6,143.45,18.74]
[1727050103169,25.1428074,143.6,143.45,18.74]
[1727050103372,25.1428074,143.6,143.51,3.4838]
[1727050103579,25.1428074,143.6,143.43,1.3827]
[1727050103774,25.1428074,143.6,143.45,18.74]
[1727050104168,25.1428074,143.6,143.49,3.4842]
[1727050104462,25.1428074,143.6,143.45,18.74]
[1727050104668,25.1428074,143.6,143.5,3.484]
[1727050104974,25.1428074,143.6,143.45,18.74]
[1727050105374,25.1428074,143.6,143.43,1.3827]
[1727050105574,25.1428074,143.6,143.47,18.74]
[1727050106376,18.74,143.57,143.41,6.9724]
[1727050106673,3.4852,143.46,143.35,18.74]
[1727050106874,18.74,143.48,143.35,18.74]
[1727050107073,1.3788,143.47,143.35,18.74]
[1727050107577,1.3788,143.47,143.32,1.4588]
[1727050107578,18.74,143.45,143.33,18.74]
[1727050107770,1.3995,143.44,143.33,18.74]
[1727050107972,1.3995,143.44,143.36,3.4873]
[1727050108178,1.3995,143.44,143.32,1.4588]
[1727050108375,5.703666,143.43,143.32,1.4588]
[1727050108573,1.3995,143.44,143.34,18.74]
[1727050108874,13.25379451,143.47,143.36,18.74]
[1727050109079,18.31941368,143.46,143.39,3.4867]
[1727050109377,45.43201364,143.45,143.31,18.74]
[1727050109674,26.69201364,143.44,143.33,3.4882]
[1727050109876,31.3554443,143.43,143.33,3.4882]
[1727050110078,20.0999,143.43,143.33,3.4882]
[1727050110281,18.30447147,143.42,143.33,3.4882]
[1727050110473,5.69830089,143.41,143.33,3.4882]
[1727050110977,1.3801,143.4,143.33,3.4882]
[1727050111375,1.3599,143.43,143.31,18.74]
[1727050111573,1.3599,143.43,143.34,18.74]
[1727050111774,1.3599,143.43,143.35,1.4504]
[1727050112473,20.0999,143.43,143.35,1.4504]
[1727050112778,18.74,143.4,143.29,3.4892]
[1727050112978,18.74,143.4,143.27,1.405]
[1727050113384,18.74,143.4,143.3,3.4888]
[1727050113885,3.55965795,143.39,143.31,3.4887]
[1727050114281,3.55965795,143.39,143.27,1.405]
[1727050114476,3.55965795,143.39,143.27,20.145]
[1727050114774,20.0999,143.43,143.29,18.74]
[1727050114978,20.0999,143.43,143.27,1.405]
[1727050114979,1.3599,143.43,143.32,18.74]
[1727050115580,1.3599,143.43,143.37,3.4872]
[1727050116183,1.3599,143.43,143.36,3.4874]
[1727050116384,1.3599,143.43,143.32,18.74]
[1727050116883,1.3599,143.43,143.37,3.4871]
[1727050117585,1.3599,143.43,143.32,18.74]
[1727050118078,1.3599,143.43,143.36,3.4874]
[1727050118679,1.3599,143.43,143.37,3.4872]
[1727050119085,1.3599,143.43,143.32,18.74]
[1727050119387,1.3599,143.43,143.36,3.4874]
[1727050119891,1.3599,143.43,143.35,3.4877]
[1727050120388,18.74,143.41,143.35,3.4877]
[1727050121277,18.74,143.41,143.29,18.74]
[1727050121785,18.74,143.41,143.33,3.4881]
[1727050122381,18.74,143.39,143.28,1.4132]
[1727050122588,3.41185866,143.38,143.28,1.4132]
[1727050122779,18.74,143.39,143.28,1.4132]
[1727050122984,18.74,143.39,143.3,3.4889]
[1727050122985,3.51025753,143.38,143.3,3.4889]
[1727050123185,18.74,143.39,143.3,3.4889]
[1727050123482,1.3345,143.37,143.29,3.4892]
[1727050123684,18.74,143.36,143.27,1.405]
[1727050123884,20.0806,143.36,143.27,1.405]
[1727050124085,20.0806,143.36,143.28,3.4893]
[1727050124285,18.74,143.32,143.18,1.3923]
[1727050124485,18.74,143.32,143.19,20.1549]
[1727050124686,18.74,143.32,143.24,3.4902]
[1727050124885,18.74,143.32,143.19,20.1549]
[1727050125390,18.74,143.32,143.2,1.28283214]
[1727050125590,18.74,143.32,143.19,20.1549]
[1727050127289,18.74,143.32,143.24,3.4903]
[1727050127685,18.74,143.34,143.22,18.74]
[1727050128502,18.74,143.34,143.19,1.4149]
[1727050128790,18.74,143.34,143.26,3.4898]
[1727050128996,18.74,143.34,143.22,18.74]
[1727050129791,18.74,143.34,143.28,3.4893]
[1727050130193,18.74,143.34,143.22,18.74]
[1727050130495,1.3406,143.36,143.22,18.74]
[1727050130902,1.3406,143.36,143.19,1.4149]
[1727050131094,1.3406,143.36,143.24,18.74]
[1727050131400,1.3406,143.36,143.25,1.3779]
[1727050132290,1.3406,143.36,143.27,3.4897]
[1727050133398,1.3406,143.36,143.25,1.3779]
[1727050134093,1.3406,143.36,143.29,3.489]
[1727050134496,1.3406,143.36,143.25,1.3779]
[1727050134902,1.3406,143.36,143.28,3.4894]
[1727050135700,18.74,143.34,143.27,3.4896]
[1727050136306,18.74,143.34,143.3,3.489]
[1727050136502,18.74,143.34,143.25,1.3779]
[1727050137508,18.74,143.34,143.28,3.4892]
[1727050137694,18.74,143.34,143.25,1.3779]
[1727050138105,18.74,143.34,143.28,3.4894]
[1727050139402,18.74,143.34,143.27,3.4897]